bitfinex-derivatives/quotes_ETHF0:USTF0_20250330
["timestamp","ask_amount","ask_price","bid_price","bid_amount"]
[1743320244178,2.50867,1840.9,1840.7,2.47844]
[1743320244386,2.5168193,1840.9,1840.7,1.3916]
[1743320244579,2.5168193,1840.9,1840.8,1.4303]
[1743320245680,1.08684,1840.7,1840.6,3.4681493]
[1743320245886,1.08684,1840.7,1840.6,4.8984493]
[1743320246283,1.08684,1840.7,1840.6,5.6480493]
[1743320246584,1.08684,1840.7,1840.6,4.2177493]
[1743320248287,1.08684,1840.7,1840.6,5.6416493]
[1743320250588,1.08684,1840.7,1840.6,8.8494493]
[1743320253091,2.58893,1840.8,1840.6,9.9363493]
[1743320253387,2.58893,1840.8,1840.7,1.468]
[1743320253584,1.08683,1840.8,1840.7,1.468]
[1743320254691,1.08684,1840.7,1840.6,7.4255493]
[1743320255786,1.82754,1840.7,1840.6,7.4255493]
[1743320257085,1.82754,1840.7,1840.6,3.4741493]
[1743320257488,1.08684,1840.7,1840.6,3.4741493]
[1743320257689,1.08684,1840.7,1840.6,4.9594493]
[1743320260391,1.08684,1840.7,1840.6,8.1672493]
[1743320266095,1.08684,1840.7,1840.6,4.9594493]
[1743320266295,1.08684,1840.7,1840.6,8.1672493]
[1743320272105,1.08684,1840.7,1840.6,9.2541493]
[1743320272607,2.5779,1840.8,1840.6,9.2541393]
[1743320272810,2.5779,1840.8,1840.7,1.431]
[1743320273905,1.4911,1840.8,1840.7,1.431]
[1743320274100,1.4911,1840.8,1840.7,2.51784]
[1743320274298,2.57788,1840.8,1840.7,2.51784]
[1743320274497,2.57788,1840.8,1840.7,1.431]
[1743320275203,1.4911,1840.8,1840.7,2.51784]
[1743320275505,2.57788,1840.8,1840.7,1.431]
[1743320275806,2.57788,1840.8,1840.7,2.51784]
[1743320276207,2.57788,1840.8,1840.7,1.431]
[1743320276407,1.4911,1840.8,1840.7,2.51784]
[1743320277605,2.57788,1840.8,1840.7,1.431]
[1743320279096,2.57788,1840.8,1840.7,4.6388]
[1743320283002,2.57788,1840.8,1840.7,3.2078]
[1743320283207,2.57788,1840.8,1840.6,0.0081493]
[1743320283208,1.08684,1840.7,1840.6,0.0081493]
[1743320283403,3.18224,1840.7,1840.6,0.0081493]
[1743320283804,2.46484,1840.7,1840.6,0.0081493]
[1743320285806,1.378,1840.7,1840.6,6.6739493]
[1743320286011,1.378,1840.7,1840.6,9.2129493]
[1743320286214,1.0948893,1840.9,1840.7,1.08684]
[1743320286415,1.4104493,1840.9,1840.8,3.9501]
[1743320286609,1.4104493,1840.9,1840.8,5.03688]
[1743320286812,0.0081493,1840.9,1840.8,6.48898]
[1743320287113,1.4023,1841.1,1841.0,1.08667]
[1743320287413,1.4023,1841.1,1841.0,7.75747]
[1743320287916,1.4023,1841.1,1841.0,8.47557]
[1743320290520,2.48891,1841.1,1841.0,7.3889]
[1743320290914,1.4023,1841.1,1841.0,7.3889]
[1743320291115,1.4023,1841.1,1841.0,8.7613]
[1743320291419,2.48891,1841.1,1841.0,8.7613]
[1743320292020,1.4023,1841.1,1841.0,8.7613]
[1743320293917,2.48891,1841.1,1841.0,6.6708]
[1743320294721,2.48891,1841.1,1841.0,8.1673]
[1743320297014,2.48891,1841.1,1841.0,6.6708]
[1743320299431,3.20231,1841.1,1841.0,6.6708]
[1743320299820,3.20231,1841.1,1841.0,3.2078]
[1743320300428,2.48891,1841.1,1841.0,3.2078]
[1743320300629,2.48891,1841.1,1841.0,4.6067]
[1743320302536,2.48891,1841.1,1841.0,1.3989]
[1743320302734,2.48891,1841.1,1841.0,4.6067]
[1743320304734,1.4023,1841.1,1841.0,5.69337]
[1743320304937,0.0081493,1841.2,1841.1,1.08661]
[1743320305131,0.0081493,1841.2,1841.1,3.23591]
[1743320308043,0.0081493,1841.2,1841.1,6.44371]
[1743320308342,0.0081493,1841.2,1841.1,5.3571]
[1743320308537,1.0946993,1841.2,1841.1,5.3571]
[1743320308744,1.0946993,1841.2,1841.1,8.8121]
[1743320308928,0.0081493,1841.2,1841.1,8.8121]
[1743320309134,1.0946993,1841.2,1841.1,8.8121]
[1743320309334,2.5212993,1841.2,1841.1,8.8121]
[1743320309530,1.4347493,1841.2,1841.1,8.8121]
[1743320309735,2.5212993,1841.2,1841.1,8.8121]
[1743320310146,1.4347493,1841.2,1841.1,9.89871]
[1743320313443,2.5212993,1841.2,1841.1,8.8121]
[1743320313642,2.5212993,1841.2,1841.1,7.387]
[1743320315843,2.5212993,1841.2,1841.1,8.8042]
[1743320320150,2.5212993,1841.2,1841.1,9.89081]
[1743320320349,2.5212993,1841.2,1841.1,8.8042]
[1743320321748,1.4347493,1841.2,1841.1,8.8042]
[1743320321956,1.4347493,1841.2,1841.1,9.89081]
[1743320322342,2.5212993,1841.2,1841.1,9.89081]
[1743320322644,2.5212993,1841.2,1841.1,8.8042]
[1743320322950,1.4347493,1841.2,1841.1,9.89081]
[1743320323343,2.5212993,1841.2,1841.1,8.8042]
[1743320324558,0.0081493,1841.2,1841.1,9.89081]
[1743320326350,1.4388493,1841.2,1841.1,9.89081]
[1743320326753,1.4388493,1841.2,1841.1,8.8042]
[1743320329650,1.4388493,1841.2,1841.1,5.5964]
[1743320329953,1.4388493,1841.2,1841.1,8.8042]
[1743320330858,1.4388493,1841.2,1841.1,9.89081]
[1743320333059,1.4388493,1841.2,1841.1,6.68301]
[1743320333548,1.4388493,1841.2,1841.1,9.89081]
[1743320334352,0.0081493,1841.2,1841.1,9.89081]
[1743320334555,1.4546,1841.5,1841.4,1.08643]
[1743320334761,1.4546,1841.5,1841.4,4.52943]
[1743320335358,1.4546,1841.5,1841.4,5.525]
[1743320335561,2.54097,1841.5,1841.4,5.525]
[1743320336354,2.54097,1841.5,1841.4,3.443]
[1743320336560,1.08643,1841.4,1841.3,3.2078]
[1743320336760,2.49063,1841.4,1841.3,3.2078]
[1743320338447,1.4042,1841.4,1841.1,3.2078]
[1743320338646,1.08676,1840.9,1840.8,3.2078]
[1743320338853,1.08678,1840.8,1840.7,0.7397]
[1743320339055,1.08684,1840.7,1840.6,6.6649493]
[1743320339551,2.50204,1840.7,1840.6,6.6649493]
[1743320342354,1.4152,1840.7,1840.6,6.6649493]
[1743320342554,1.4152,1840.7,1840.6,8.1415493]
[1743320342753,1.4152,1840.7,1840.6,8.8321493]
[1743320343553,2.50204,1840.7,1840.6,8.8321493]
[1743320344061,1.4152,1840.7,1840.6,8.8321493]
[1743320345962,1.4152,1840.7,1840.6,3.2159493]
[1743320346155,2.50204,1840.7,1840.6,6.6629493]
[1743320347061,2.50204,1840.7,1840.6,8.0455493]
[1743320348063,2.50204,1840.7,1840.6,4.8377493]
[1743320348361,2.50204,1840.7,1840.6,8.0455493]
[1743320349560,2.50204,1840.7,1840.6,4.8377493]
[1743320349760,2.50204,1840.7,1840.6,8.0455493]
[1743320350859,1.4152,1840.7,1840.6,9.1324493]
[1743320353467,1.08679,1840.8,1840.6,9.1324493]
[1743320353768,1.08679,1840.8,1840.7,2.1554]
[1743320354668,1.08679,1840.8,1840.7,5.3632]
[1743320354870,1.08675,1840.9,1840.7,5.3632]
[1743320355061,1.08675,1840.9,1840.8,2.152]
[1743320358460,0.699,1841.1,1840.8,2.152]
[1743320358666,1.08659,1841.2,1841.0,1.08667]
[1743320358971,1.08659,1841.2,1841.1,2.1099]
[1743320364074,1.08661,1841.1,1841.0,3.2078]
[1743320364370,1.08667,1841.0,1840.9,3.443]
[1743320364562,1.08684,1840.7,1840.6,3.2159493]
[1743320364764,1.08684,1840.7,1840.6,0.0081493]
[1743320364972,1.08708,1840.3,1840.2,3.449]
[1743320365165,1.08708,1840.3,1840.2,6.6568]
[1743320366377,1.08708,1840.3,1840.2,8.0127]
[1743320368680,2.53798,1840.3,1840.2,8.0127]
[1743320370569,2.53798,1840.3,1840.2,3.2078]
[1743320370970,1.4509,1840.3,1840.2,3.2078]
[1743320371175,2.53798,1840.3,1840.2,8.1145]
[1743320373679,2.53798,1840.3,1840.2,4.9067]
[1743320373978,2.53798,1840.3,1840.2,8.1145]
[1743320376576,2.53798,1840.3,1840.2,4.9067]
[1743320376883,2.53798,1840.3,1840.2,8.1145]
[1743320377377,2.53798,1840.3,1840.2,3.2078]
[1743320380585,3.27168,1840.3,1840.2,3.2078]
[1743320380985,1.08714,1840.2,1840.1,0.0081493]
[1743320381188,3.26544,1840.2,1840.1,3.2159493]
[1743320386290,3.26544,1840.2,1840.1,3.9638493]
[1743320388087,3.26544,1840.2,1840.1,0.7560493]
[1743320388493,3.26544,1840.2,1840.1,3.9638493]
[1743320392999,3.26544,1840.2,1840.1,5.3315493]
[1743320394393,3.26544,1840.2,1840.1,3.2159493]
[1743320398104,3.26544,1840.2,1840.1,0.0081493]
[1743320400894,4.00594,1840.2,1840.1,0.0081493]
[1743320402902,1.08726,1840.0,1839.9,0.6963]
[1743320405501,1.08726,1840.0,1839.9,2.0629]
[1743320418317,1.08731,1839.9,1839.8,3.9371493]
[1743320422433,1.08731,1839.9,1839.8,0.0081493]
[1743320423222,1.08743,1839.7,1839.6,3.2078]
[1743320425428,1.08749,1839.6,1839.5,1.4112493]
[1743320425633,1.08749,1839.6,1839.5,4.6190493]
[1743320429141,1.08749,1839.6,1839.5,1.4112493]
[1743320429341,1.08749,1839.6,1839.5,4.6190493]
[1743320430742,1.08746,1839.7,1839.5,5.7065893]
[1743320430936,1.08748,1839.7,1839.6,1.4162]
[1743320437631,1.08749,1839.6,1839.5,3.2159493]
[1743320437837,2.45059,1839.6,1839.5,3.2159493]
[1743320441542,2.45059,1839.6,1839.5,4.5856493]
[1743320445350,2.45059,1839.6,1839.5,3.2159493]
[1743320448446,2.45059,1839.6,1839.5,4.6924493]
[1743320450557,2.45059,1839.6,1839.5,3.2159493]
[1743320452061,2.45059,1839.6,1839.5,0.0081493]
[1743320453558,3.14489,1839.6,1839.5,0.0081493]
[1743320454075,2.45059,1839.6,1839.5,0.0081493]
[1743320456853,1.08767,1839.3,1839.2,1.4652]
[1743320457262,1.08773,1839.2,1839.1,4.6508]
[1743320457460,1.08773,1839.2,1839.1,6.0201]
[1743320459163,1.08773,1839.2,1839.1,2.8123]
[1743320459365,1.08773,1839.2,1839.1,6.0201]
[1743320464571,1.08773,1839.2,1839.1,2.8123]
[1743320464770,1.08773,1839.2,1839.1,6.0201]
[1743320468470,1.08773,1839.2,1839.1,4.6508]
[1743320469776,1.08773,1839.2,1839.1,7.3616]
[1743320469980,1.08773,1839.2,1839.1,8.071]
[1743320471978,2.59113,1839.2,1839.1,8.071]
[1743320474280,1.08773,1839.2,1839.1,8.071]
[1743320476987,2.56763,1839.2,1839.1,8.071]
[1743320479587,2.56763,1839.2,1839.1,4.8632]
[1743320479883,2.56763,1839.2,1839.1,4.63]
[1743320481285,2.56763,1839.2,1839.1,6.0117]
[1743320481490,2.56763,1839.2,1839.1,4.63]
[1743320485191,2.56763,1839.2,1839.1,1.4222]
[1743320489196,2.56763,1839.2,1839.1,0.7128]
[1743320489582,1.08779,1839.1,1839.0,1.4984493]
[1743320489788,2.54529,1839.1,1839.0,1.4984493]
[1743320490184,2.54529,1839.1,1839.0,0.0081493]
[1743320492601,2.54529,1839.1,1839.0,2.1817493]
[1743320501406,2.54529,1839.1,1839.0,5.3895493]
[1743320504508,2.54529,1839.1,1839.0,2.1817493]
[1743320504704,2.54529,1839.1,1839.0,5.3895493]
[1743320521814,2.54529,1839.1,1839.0,3.2159493]
[1743320534133,2.54529,1839.1,1839.0,0.0081493]
[1743320534629,3.25819,1839.1,1839.0,0.0081493]
[1743320539149,2.54529,1839.1,1839.0,0.0081493]
[1743320539647,1.08791,1838.9,1838.8,3.9175]
[1743320540241,2.58251,1838.9,1838.8,3.9175]
[1743320545146,2.58251,1838.9,1838.8,0.7097]
[1743320545451,2.58251,1838.9,1838.8,3.9175]
[1743320546352,1.08791,1838.9,1838.8,3.9175]
[1743320549251,1.08797,1838.8,1838.7,1.4743]
[1743320549457,1.08797,1838.8,1838.7,2.2014]
[1743320549648,1.08797,1838.8,1838.7,0.7271]
[1743320549950,1.08797,1838.8,1838.6,3.923]
[1743320549951,1.08802,1838.7,1838.6,3.923]
[1743320550549,2.45402,1838.7,1838.6,3.923]
[1743320550850,2.45402,1838.7,1838.6,5.3714]
[1743320552458,2.45402,1838.7,1838.6,3.2078]
[1743320553161,1.08808,1838.6,1838.5,3.9349]
[1743320553360,2.51708,1838.6,1838.5,3.9349]
[1743320553554,2.51708,1838.6,1838.5,0.7271]
[1743320553758,2.51708,1838.6,1838.5,3.9349]
[1743320554054,2.51708,1838.6,1838.5,0.7271]
[1743320554451,2.51708,1838.6,1838.5,3.9349]
[1743320554651,2.51708,1838.6,1838.5,0.7271]
[1743320556162,2.51708,1838.6,1838.5,3.9349]
[1743320556957,2.51708,1838.6,1838.5,0.7271]
[1743320563057,2.51708,1838.6,1838.5,2.0961]
[1743320568066,1.08808,1838.6,1838.5,2.0961]
[1743320571664,1.08808,1838.6,1838.5,5.3039]
[1743320572473,1.08808,1838.6,1838.5,2.0961]
[1743320572671,1.08808,1838.6,1838.5,5.3039]
[1743320577765,1.08808,1838.6,1838.5,3.9349]
[1743320580884,2.52388,1838.7,1838.5,3.9349]
[1743320581177,1.08808,1838.7,1838.6,2.0921]
[1743320588479,1.08808,1838.7,1838.6,0.6998]
[1743320588780,1.08808,1838.6,1838.5,3.9349]
[1743320589175,1.08808,1838.6,1838.5,3.2078]
[1743320593282,1.08808,1838.6,1838.5,4.5794]
[1743320596482,1.08808,1838.6,1838.5,8.0204]
[1743320596789,1.79011,1838.8,1838.5,9.10852]
[1743320597083,1.08801,1838.8,1838.7,3.2078]
[1743320597489,1.08801,1838.8,1838.7,4.693]
[1743320598690,1.08802,1838.7,1838.6,1.4422]
[1743320600290,1.08808,1838.6,1838.5,6.6488]
[1743320605691,1.08808,1838.6,1838.5,3.2078]
[1743320606093,1.08808,1838.6,1838.5,3.9423]
[1743320616003,1.08808,1838.6,1838.5,0.7345]
[1743320616196,1.08808,1838.6,1838.5,3.9423]
[1743320617800,1.08806,1838.7,1838.5,5.03044]
[1743320618005,1.08802,1838.7,1838.6,0.7154]
[1743320619007,1.08802,1838.7,1838.6,2.0854]
[1743320620708,1.08802,1838.7,1838.6,5.2932]
[1743320629421,1.08802,1838.7,1838.6,3.2078]
[1743320636519,1.08808,1838.6,1838.5,2.8633]
[1743320636727,1.08808,1838.6,1838.5,6.0711]
[1743320648429,1.08808,1838.6,1838.5,2.8633]
[1743320648929,1.08808,1838.6,1838.5,6.0711]
[1743320651135,1.08808,1838.6,1838.5,2.8633]
[1743320651430,1.08808,1838.6,1838.5,6.0711]
[1743320655131,1.08808,1838.6,1838.5,4.648]
[1743320658237,1.08808,1838.6,1838.5,8.088]
[1743320662943,1.08808,1838.6,1838.5,8.088]
[1743320665043,1.08808,1838.6,1838.5,4.8802]
[1743320665341,1.08808,1838.6,1838.5,8.088]
[1743320667436,1.08808,1838.6,1838.5,9.5765]
[1743320681655,1.08808,1838.6,1838.5,6.3687]
[1743320681856,1.08808,1838.6,1838.5,9.5765]
[1743320698666,1.08808,1838.6,1838.5,6.3687]
[1743320698865,1.08808,1838.6,1838.5,9.5765]
[1743320699066,1.08808,1838.6,1838.5,6.3687]
[1743320699367,1.08808,1838.6,1838.5,9.5765]
[1743320703171,1.08826,1838.3,1838.2,3.2078]
[1743320703472,1.08826,1838.3,1838.2,5.3498]
[1743320716784,1.08812,1838.6,1838.4,1.08818]
[1743320716972,1.08812,1838.6,1838.5,6.0936]
[1743320720292,2.57448,1838.8,1838.6,1.08807]
[1743320720589,2.57448,1838.8,1838.7,1.4307]
[1743320720790,1.08798,1838.8,1838.7,1.4307]
[1743320723791,1.08798,1838.8,1838.7,4.8697]
[1743320724691,1.08798,1838.8,1838.7,5.5536]
[1743320737098,1.08795,1838.9,1838.7,6.64162]
[1743320737295,1.08795,1838.9,1838.8,2.1343]
[1743320737604,23.54181818,1839.2,1838.8,12.49127823]
[1743320737788,23.54181818,1839.2,1839.1,4.29559]
[1743320737990,23.54181818,1839.2,1839.1,6.6468]
[1743320738190,24.62954818,1839.2,1839.1,6.6468]
[1743320738393,24.62954818,1839.2,1839.1,8.7847]
[1743320738705,1.08773,1839.2,1839.1,8.7847]
[1743320738891,2.50423,1839.2,1839.1,8.7847]
[1743320739494,1.4165,1839.2,1839.1,8.7847]
[1743320739695,2.50423,1839.2,1839.1,8.7847]
[1743320739898,1.4165,1839.2,1839.1,9.87249]
[1743320740395,0.0081493,1839.3,1839.2,1.08773]
[1743320740600,0.0081493,1839.3,1839.2,2.54323]
[1743320741596,3.2078,1839.8,1839.2,2.54318]
[1743320741902,2.47951,1839.4,1839.3,4.5829]
[1743320742096,2.47951,1839.4,1839.3,8.0209]
[1743320742692,1.08767,1839.3,1839.2,0.0081493]
[1743320742892,1.08791,1838.9,1838.8,6.6458]
[1743320750004,1.08791,1838.9,1838.8,8.0457]
[1743320751895,2.45151,1838.9,1838.8,6.6458]
[1743320752307,3.17041,1838.9,1838.8,6.6458]
[1743320756506,3.17041,1838.9,1838.8,3.438]
[1743320760404,1.08797,1838.8,1838.7,3.2078]
[1743320760711,2.59117,1838.8,1838.7,3.2078]
[1743320760908,1.08814,1838.5,1838.4,3.2078]
[1743320762103,1.80094,1838.5,1838.4,3.2078]
[1743320768109,1.0882,1838.4,1838.3,4.8266]
[1743320768311,2.4934,1838.4,1838.3,4.8266]
[1743320772515,2.4934,1838.4,1838.3,1.3886]
[1743320778624,2.4934,1838.4,1838.3,2.47686]
[1743320778825,2.4934,1838.4,1838.3,1.3886]
[1743320782016,0.0081493,1838.5,1838.4,1.0882]
[1743320782322,0.0081493,1838.5,1838.4,8.4723]
[1743320782523,0.0081493,1838.5,1838.4,7.3841]
[1743320783025,0.0081493,1838.5,1838.4,8.777]
[1743320784427,0.0081493,1838.5,1838.4,9.8652]
[1743320794223,1.4363493,1838.5,1838.4,9.8652]
[1743320807535,2.5244893,1838.5,1838.4,8.777]
[1743320807733,1.4363493,1838.5,1838.2,1.2678]
[1743320807924,1.4363493,1838.5,1838.4,3.2078]
[1743320807925,0.0081493,1838.5,1838.4,3.2078]
[1743320808126,1.0962893,1838.5,1838.4,3.2078]
[1743320808327,1.0882,1838.4,1838.3,3.438]
[1743320808735,1.7949,1838.4,1838.3,3.438]
[1743320818758,2.5354,1838.4,1838.3,3.438]
[1743320819058,3.9006,1838.4,1838.3,3.438]
[1743320820258,2.8124,1838.4,1838.0,3.2078]
[1743320820465,1.08838,1838.1,1838.0,3.2078]
[1743320821458,3.29898,1838.1,1838.0,3.2078]
[1743320822863,3.29898,1838.1,1838.0,4.6038]
[1743320823060,2.2106,1838.1,1838.0,4.6038]
[1743320823357,3.29898,1838.1,1838.0,4.6038]
[1743320825663,3.29898,1838.1,1838.0,3.2078]
[1743320832468,3.29898,1838.1,1837.8,4.8121]
[1743320832469,1.0885,1837.9,1837.8,4.8121]
[1743320832864,1.0885,1837.9,1837.8,8.0199]
[1743320835063,1.0885,1837.9,1837.8,3.2078]
[1743320835664,2.5304,1837.9,1837.8,3.2078]
[1743320837071,2.5304,1837.9,1837.8,4.585]
[1743320838773,1.08862,1837.7,1837.6,3.9512]
[1743320838969,1.08862,1837.7,1837.6,4.7]
[1743320839174,1.08862,1837.7,1837.6,6.1728]
[1743320839373,2.5647,1837.8,1837.6,7.26145]
[1743320839575,2.5647,1837.8,1837.7,1.4728]
[1743320839777,1.4761,1837.8,1837.7,1.4728]
[1743320839972,2.56466,1837.8,1837.7,1.4728]
[1743320844079,0.73,1838.1,1837.7,2.56136]
[1743320844280,1.08853,1837.9,1837.8,3.8994]
[1743320849181,1.0885,1837.9,1837.8,3.8994]
[1743320850977,1.0885,1837.9,1837.8,3.2078]
[1743320851177,1.8313,1837.9,1837.8,3.2078]
[1743320851584,3.2807,1837.9,1837.8,3.2078]
[1743320854484,1.08883,1837.4,1837.2,3.2078]
[1743320854684,1.08883,1837.4,1837.3,0.7097]
[1743320855388,2.59293,1837.4,1837.3,0.7097]
[1743320857385,1.08885,1837.3,1837.2,0.7145]
[1743320857588,1.08897,1837.1,1837.0,3.2078]
[1743320858687,2.54997,1837.1,1837.0,3.2078]
[1743320859082,2.54997,1837.1,1837.0,4.6768]
[1743320860089,1.461,1837.1,1837.0,5.76583]
[1743320860483,1.461,1837.1,1837.0,4.6768]
[1743320860680,2.54997,1837.1,1837.0,4.6768]
[1743320860886,2.54997,1837.1,1837.0,8.1158]
[1743320862985,2.54997,1837.1,1837.0,3.2078]
[1743320863388,2.54997,1837.1,1837.0,4.6689]
[1743320864487,1.461,1837.1,1837.0,4.6689]
[1743320864693,2.54997,1837.1,1837.0,4.6689]
[1743320866592,0.6813,1837.4,1837.0,4.6689]
[1743320866799,1.4618,1837.4,1837.3,1.08883]
[1743320867090,1.0968893,1837.5,1837.3,1.08883]
[1743320867296,1.4699493,1837.5,1837.4,1.4591]
[1743320867794,1.4699493,1837.5,1837.4,2.851]
[1743320868299,2.5586893,1837.5,1837.4,2.851]
[1743320869094,1.4699493,1837.5,1837.4,2.851]
[1743320869698,0.0081493,1837.5,1837.4,3.93979]
[1743320871799,0.0081493,1837.5,1837.4,2.851]
[1743320872196,0.0081493,1837.5,1837.4,3.93979]
[1743320873502,3.2078,1837.7,1837.5,1.08874]
[1743320873697,3.2078,1837.7,1837.6,4.52868]
[1743320873898,3.2078,1837.7,1837.6,3.44]
[1743320874298,3.2078,1837.7,1837.6,4.9325]
[1743320875894,4.29642,1837.7,1837.6,4.9325]
[1743320876100,1.4954,1837.7,1837.6,4.9325]
[1743320877301,2.58402,1837.7,1837.6,4.9325]
[1743320877505,1.4954,1837.7,1837.6,4.9325]
[1743320879702,2.58402,1837.7,1837.6,4.9325]
[1743320879904,1.4954,1837.7,1837.6,4.9325]
[1743320880413,2.58402,1837.7,1837.6,4.9325]
[1743320880708,1.4954,1837.7,1837.6,4.9325]
[1743320880907,2.58402,1837.7,1837.6,4.9325]
[1743320884799,1.4954,1837.7,1837.6,6.02118]
[1743320888412,0.0081493,1837.8,1837.7,1.08862]
[1743320888610,1.4471493,1837.8,1837.7,3.94502]
[1743320889010,3.2078,1837.9,1837.8,1.08856]
[1743320889216,3.2078,1837.9,1837.8,2.48066]
[1743320891011,4.569,1837.9,1837.8,2.48066]
[1743320891515,4.569,1837.9,1837.8,1.3921]
[1743320891716,1.3612,1837.9,1837.8,2.48066]
[1743320893418,3.2078,1838.2,1838.1,1.08838]
[1743320893713,6.4481,1838.5,1838.1,3.439]
[1743320893914,1.4244,1838.4,1838.3,1.08826]
[1743320894110,1.4244,1838.4,1838.3,2.47926]
[1743320896515,3.2159493,1838.5,1838.4,1.0882]
[1743320896718,4.7068493,1838.5,1838.4,5.9021]
[1743320896917,1.4990493,1838.5,1838.4,5.9021]
[1743320899018,1.4990493,1838.5,1838.4,4.8139]
[1743320899917,1.4990493,1838.5,1838.4,5.9021]
[1743320902721,1.4990493,1838.5,1838.4,2.4631]
[1743320902928,1.4990493,1838.5,1838.4,3.438]
[1743320903127,2.5871893,1838.5,1838.4,3.438]
[1743320903325,3.3186893,1838.5,1838.4,3.438]
[1743320906331,2.2305493,1838.5,1838.4,3.438]
[1743320907326,1.4990493,1838.5,1838.4,3.438]
[1743320907526,1.4990493,1838.5,1838.4,4.5262]
[1743320912332,1.4990493,1838.5,1838.4,3.438]
[1743320912634,1.4990493,1838.5,1838.4,4.5262]
[1743320912929,1.4990493,1838.5,1838.4,5.9441]
[1743320921948,2.5871893,1838.5,1838.4,4.8559]
[1743320922142,1.4990493,1838.5,1838.4,4.8559]
[1743320922345,1.4990493,1838.5,1838.4,5.9441]
[1743320922346,0.0081493,1838.5,1838.4,5.9441]
[1743320929653,0.0081493,1838.5,1838.4,4.5262]
[1743320930155,0.0081493,1838.5,1838.4,5.9164]
[1743320930356,1.4199493,1838.5,1838.4,5.9164]
[1743320933658,1.4199493,1838.5,1838.4,1.3902]
[1743320933864,1.4199493,1838.5,1838.0,50.266]
[1743320934161,0.7404,1838.4,1838.0,53.703]
[1743320934355,1.08832,1838.2,1838.0,53.703]
[1743320934561,2.52738,1838.1,1838.0,53.703]
[1743320934755,3.26778,1838.1,1838.0,53.703]
[1743320934955,2.1794,1838.1,1838.0,53.703]
[1743320935155,3.26778,1838.1,1838.0,53.703]
[1743320935860,2.1794,1838.1,1838.0,53.703]
[1743320937057,2.1794,1838.1,1838.0,3.437]
[1743320937360,1.439,1838.1,1838.0,4.52544]
[1743320937559,1.439,1838.1,1838.0,3.437]
[1743320939668,2.52738,1838.1,1838.0,3.437]
[1743320940564,1.439,1838.1,1838.0,3.437]
[1743320940867,2.52738,1838.1,1838.0,3.437]
[1743320942165,1.439,1838.1,1838.0,3.437]
[1743320944569,1.439,1838.1,1838.0,6.02774]
[1743320944771,1.439,1838.1,1838.0,6.76784]
[1743320945269,1.439,1838.1,1838.0,5.6794]
[1743320945761,1.439,1838.1,1838.0,6.76784]
[1743320951165,2.52738,1838.1,1838.0,3.437]
[1743320953075,1.439,1838.1,1838.0,3.437]
[1743320954268,2.52738,1838.1,1838.0,3.437]
[1743320958881,1.439,1838.1,1838.0,3.437]
[1743320959083,1.79538,1838.3,1838.0,5.5584]
[1743320959376,1.4583,1838.2,1838.1,1.3702]
[1743320960969,1.4583,1838.2,1837.9,3.9186]
[1743320961165,0.7186,1838.1,1837.6,3.8933]
[1743320961372,1.08856,1837.8,1837.7,3.438]
[1743320962880,2.50885,1837.9,1837.7,3.438]
[1743320963081,2.50885,1837.9,1837.7,4.8223]
[1743320963268,1.08855,1837.9,1837.8,0.7349]
[1743320964980,1.08855,1837.9,1837.6,3.8933]
[1743320964981,1.08862,1837.7,1837.6,3.2078]
[1743320965179,1.08862,1837.7,1837.6,6.6458]
[1743320967682,1.08862,1837.7,1837.6,3.2078]
[1743320967882,1.08868,1837.6,1837.5,0.0081493]
[1743320968186,2.56508,1837.6,1837.5,0.0081493]
[1743320978486,1.82388,1837.6,1837.5,0.0081493]
[1743320978688,1.08868,1837.6,1837.5,0.0081493]
[1743320979089,1.08868,1837.6,1837.5,0.7387493]
[1743320979289,2.51158,1837.6,1837.5,0.7387493]
[1743320979483,2.51158,1837.6,1837.5,2.2154493]
[1743320983700,2.51158,1837.6,1837.5,0.0081493]
[1743320990600,1.08891,1837.2,1837.1,4.8593]
[1743320990800,1.08891,1837.2,1837.1,5.5672]
[1743320997999,1.08891,1837.2,1837.1,2.1282]
[1743320998201,1.08891,1837.2,1837.1,5.5672]
[1743321001406,1.08891,1837.2,1837.1,4.1469]
[1743321005509,2.48671,1837.2,1837.1,4.1469]
[1743321008826,2.48671,1837.2,1837.1,0.7079]
[1743321009023,3.22521,1837.2,1837.1,0.7079]
[1743321010115,2.48671,1837.2,1837.1,0.7079]
[1743321012419,2.48671,1837.2,1837.1,2.1475]
[1743321017235,0.0081493,1837.3,1837.1,2.1475]
[1743321017433,0.0081493,1837.3,1837.2,9.89831]
[1743321017627,0.0081493,1837.3,1837.2,8.8094]
[1743321018531,0.0081493,1837.3,1837.2,9.89831]
[1743321023232,0.0081493,1837.3,1837.2,6.69051]
[1743321023531,0.0081493,1837.3,1837.2,9.89831]
[1743321025437,3.2078,1837.7,1837.4,1.08878]
[1743321025639,1.08868,1837.6,1837.5,4.9079]
[1743321025939,1.4344,1837.6,1837.5,4.9079]
[1743321026339,2.52308,1837.6,1837.5,4.9079]
[1743321027538,1.4344,1837.6,1837.5,5.99664]
[1743321027739,0.0081493,1837.7,1837.6,1.08868]
[1743321028043,3.2078,1837.9,1837.7,1.08858]
[1743321028338,4.5649,1837.9,1837.8,4.1811]
[1743321028640,4.5649,1837.9,1837.8,4.8856]
[1743321028841,5.6534,1837.9,1837.8,4.8856]
[1743321029344,2.4456,1837.9,1837.8,4.8856]
[1743321030043,1.3571,1837.9,1837.8,4.8856]
[1743321030945,2.4456,1837.9,1837.8,4.8856]
[1743321031143,3.1839,1837.9,1837.8,3.439]
[1743321033243,2.0954,1837.9,1837.8,3.439]